fUST/lending_fUST_20250301
["ID","MTS","AMOUNT","RATE_DAILY","PERIOD"]
[354916610,1740815474000,-500.0,0.00034246,2]
[354916611,1740815474009,-690.59,0.00034246,2]
[354916612,1740815474018,-571.44,0.00034246,2]
[354916613,1740815474028,-500.0,0.00034246,2]
[354916614,1740815474038,-907.18,0.00034246,2]
[354916615,1740815474047,-500.0,0.00034246,2]
[354916616,1740815474056,-500.0,0.00034246,2]
[354916617,1740815474066,-500.0,0.00034246,2]
[354916618,1740815474076,-500.0,0.00034246,2]
[354916619,1740815474086,-500.0,0.00034246,2]
[354916620,1740815474097,-500.0,0.00034246,2]
[354916621,1740815474106,-814.74,0.00034246,2]
[354916622,1740815474116,-500.0,0.00034246,2]
[354916623,1740815474126,-980.27,0.00034246,2]
[354916624,1740815474136,-1212.48,0.00034246,2]
[354916625,1740815474146,-500.0,0.00034246,2]
[354916626,1740815474157,-500.0,0.00034246,2]
[354916627,1740815474167,-500.0,0.00034246,2]
[354916628,1740815474177,-500.0,0.00034246,2]
[354916629,1740815474187,-367.294875,0.00034246,14]
[354916630,1740815474199,-500.0,0.00034246,2]
[354916631,1740815474213,-367.294875,0.00034246,14]
[354916632,1740815474222,-826.0,0.00034246,2]
[354916633,1740815474232,-748.99,0.00034246,2]
[354916634,1740815474242,-633.13,0.00034246,2]
[354916635,1740815474253,-500.0,0.00034246,2]
[354916636,1740815474263,-575.27,0.00034246,2]
[354916637,1740815474273,-500.0,0.00034246,2]
[354916638,1740815474283,-500.0,0.00034246,2]
[354916639,1740815474295,-500.0,0.00034246,2]
[354916640,1740815474305,-500.0,0.00034246,2]
[354916641,1740815474315,-500.0,0.00034246,2]
[354916642,1740815474324,-151.0,0.00034246,14]
[354916643,1740815474335,-500.0,0.00034246,2]
[354916644,1740815474346,-1102.33,0.00034246,2]
[354916645,1740815474356,-667.0,0.00034246,2]
[354916646,1740815474366,-500.0,0.00034246,2]
[354916647,1740815474376,-500.0,0.00034246,2]
[354916648,1740815474386,-500.0,0.00034246,2]
[354916649,1740815474397,-910.24,0.00034246,2]
[354916650,1740815474408,-1147.66,0.00034246,2]
[354916651,1740815474418,-500.0,0.00034246,2]
[354916652,1740815474428,-500.0,0.00034246,2]
[354916653,1740815474439,-500.0,0.00034246,2]
[354916654,1740815474450,-500.0,0.00034246,2]
[354916655,1740815474460,-500.0,0.00034246,2]
[354916656,1740815474470,-1583.99,0.00034246,2]
[354916657,1740815474480,-606.94,0.00034246,2]
[354916658,1740815474490,-500.0,0.00034246,2]
[354916659,1740815474500,-500.0,0.00034246,2]
[354916660,1740815474510,-3214.59,0.00034246,2]
[354916661,1740815474520,-500.0,0.00034246,2]
[354916662,1740815474531,-1612.53,0.00034246,2]
[354916663,1740815474541,-1991.39,0.00034246,2]
[354916664,1740815474551,-500.0,0.00034246,2]
[354916665,1740815474561,-518.42023982,0.00034246,2]
[354916666,1740815474571,-241.152954,0.00034246,14]
[354916667,1740815474581,-509.6681462,0.00034246,2]
[354916668,1740815474591,-1175.6,0.00034246,2]
[354916669,1740815474601,-500.0,0.00034246,2]
[354916670,1740815474611,-500.0,0.00034246,2]
[354916671,1740815474620,-500.0,0.00034246,2]
[354916672,1740815474630,-500.0,0.00034246,2]
[354916673,1740815474640,-819.63,0.00034246,2]
[354916674,1740815474649,-500.0,0.00034246,2]
[354916675,1740815474659,-726.0,0.00034246,2]
[354916676,1740815474668,-585.13,0.00034246,2]
[354916677,1740815474678,-500.0,0.00034246,2]
[354916678,1740815474687,-500.0,0.00034246,2]
[354916679,1740815474696,-1978.69,0.00034246,2]
[354916680,1740815474706,-500.0,0.00034246,2]
[354916681,1740815474715,-500.0,0.00034246,2]
[354916682,1740815474725,-500.0,0.00034246,2]
[354916683,1740815474735,-977.09,0.00034246,2]
[354916684,1740815474744,-500.0,0.00034246,2]
[354916685,1740815474753,-500.0,0.00034246,2]
[354916686,1740815474763,-1243.42,0.00034246,2]
[354916687,1740815474772,-537.21722155,0.00034246,2]
[354916688,1740815474781,-500.0,0.00034246,2]
[354916689,1740815474791,-216.40643473,0.00034246,2]
[354916690,1740815474801,-500.0,0.00034246,2]
[354916691,1740815474811,-500.0,0.00034246,2]
[354916692,1740815474821,-500.0,0.00034246,2]
[354916693,1740815474831,-500.0,0.00034246,2]
[354916694,1740815474841,-500.0,0.00034246,2]
[354916695,1740815474851,-1165.3,0.00034246,2]
[354916696,1740815474861,-500.0,0.00034246,2]
[354916697,1740815474871,-500.0,0.00034246,2]
[354916698,1740815474882,-697.43,0.00034246,2]
[354916699,1740815474892,-500.0,0.00034246,2]
[354916700,1740815474902,-629.36,0.00034246,2]
[354916701,1740815474912,-1614.06,0.00034246,2]
[354916702,1740815474921,-500.0,0.00034246,2]
[354916703,1740815474932,-500.0,0.00034246,2]
[354916704,1740815474942,-1672.62,0.00034246,2]
[354916705,1740815474953,-1168.67,0.00034246,2]
[354916706,1740815474963,-857.04,0.00034246,2]
[354916707,1740815474972,-500.0,0.00034246,2]
[354916708,1740815474982,-500.0,0.00034246,2]
[354916709,1740815474991,-500.0,0.00034246,2]
[354916710,1740815475000,-294.04671289,0.00034246,2]
[354916711,1740815475010,-500.0,0.00034246,2]
[354916712,1740815475020,-500.0,0.00034246,2]
[354916713,1740815475029,-1364.59,0.00034246,2]
[354916714,1740815475039,-500.0,0.00034246,2]
[354916715,1740815475049,-500.0,0.00034246,2]
[354916716,1740815475059,-500.0,0.00034246,2]
[354916717,1740815475069,-500.0,0.00034246,2]
[354916718,1740815475079,-500.0,0.00034246,2]
[354916719,1740815475089,-1248.74,0.00034246,2]
[354916720,1740815475100,-1386.76,0.00034246,2]
[354916721,1740815475110,-765.4,0.00034246,2]
[354916722,1740815475120,-508.14,0.00034246,2]
[354916723,1740815475130,-500.0,0.00034246,2]
[354916724,1740815475140,-500.0,0.00034246,2]
[354916725,1740815475150,-500.0,0.00034246,2]
[354916726,1740815475160,-500.0,0.00034246,2]
[354916727,1740815475169,-299.37873182,0.00034246,2]
[354916728,1740815475179,-500.0,0.00034246,2]
[354916729,1740815475188,-500.0,0.00034246,2]
[354916730,1740815475199,-200.8,0.00034246,2]
[354916731,1740815475218,-708.99,0.00034246,2]
[354916732,1740815475228,-602.43,0.00034246,120]
[354916733,1740815475238,-500.0,0.00034246,2]
[354916734,1740815475247,-500.0,0.00034246,2]
[354916735,1740815475258,-528.79,0.00034246,2]
[354916736,1740815475267,-1311.27,0.00034246,2]
[354916737,1740815475277,-1531.11,0.00034246,2]
[354916738,1740815475285,-542.15,0.00034246,2]
[354916739,1740815475294,-500.0,0.00034246,2]
[354916740,1740815475303,-2186.09,0.00034246,2]
[354916741,1740815475313,-500.0,0.00034246,2]
[354916742,1740815475323,-500.0,0.00034246,2]
[354916743,1740815475332,-500.0,0.00034246,2]
[354916744,1740815475341,-500.0,0.00034246,2]
[354916745,1740815475351,-500.0,0.00034246,2]
[354916746,1740815475361,-522.76,0.00034246,2]
[354916747,1740815475370,-526.65,0.00034246,2]
[354916748,1740815475379,-500.0,0.00034246,2]
[354916749,1740815475388,-526.1,0.00034246,2]
[354916750,1740815475397,-500.0,0.00034246,2]
[354916751,1740815475407,-2054.32,0.00034246,2]
[354916752,1740815475419,-1980.26,0.00034246,2]
[354916753,1740815475430,-2003.83,0.00034246,2]
[354916754,1740815475441,-728.09,0.00034246,2]
[354916755,1740815475450,-500.0,0.00034246,2]
[354916756,1740815475460,-500.0,0.00034246,2]
[354916757,1740815475470,-2503.04,0.00034246,2]
[354916758,1740815475481,-1736.79,0.00034246,2]
[354916759,1740815475491,-500.0,0.00034246,2]
[354916760,1740815475501,-1167.51,0.00034246,2]
[354916761,1740815475511,-500.0,0.00034246,2]
[354916762,1740815475520,-691.22,0.00034246,2]
[354916763,1740815475530,-500.0,0.00034246,2]
[354916764,1740815475539,-539.33,0.00034246,2]
[354916765,1740815475549,-866.32,0.00034246,2]
[354916766,1740815475559,-500.0,0.00034246,2]
[354916767,1740815475570,-1554.97,0.00034246,2]
[354916768,1740815475580,-272.96,0.00034246,2]
[354916769,1740815475590,-621.05,0.00034246,2]
[354916770,1740815475600,-496.96,0.00034246,2]
[354916771,1740815475610,-582.9,0.00034246,2]
[354916772,1740815475619,-540.03,0.00034246,2]
[354916773,1740815475629,-500.0,0.00034246,2]
[354916774,1740815475639,-822.38,0.00034246,2]
[354916775,1740815475649,-3095.22,0.00034246,2]
[354916776,1740815475659,-500.0,0.00034246,2]
[354916777,1740815475669,-500.0,0.00034246,2]
[354916778,1740815475678,-798.81,0.00034246,2]
[354916779,1740815475688,-604.77,0.00034246,2]
[354916780,1740815475698,-3607.05,0.00034246,2]
[354916781,1740815475708,-1312.54,0.00034246,2]
[354916782,1740815475718,-503.45,0.00034246,2]
[354916783,1740815475727,-1898.36,0.00034246,2]
[354916784,1740815475737,-932.6,0.00034246,2]
[354916785,1740815475747,-500.0,0.00034246,2]
[354916786,1740815475757,-500.0,0.00034246,2]
[354916787,1740815475767,-513.9,0.00034246,2]
[354916788,1740815475777,-500.0,0.00034246,2]
[354916789,1740815475787,-500.0,0.00034246,2]
[354916790,1740815475798,-1322.7,0.00034246,2]
[354916791,1740815475808,-500.0,0.00034246,2]
[354916792,1740815475817,-2595.99,0.00034246,2]
[354916793,1740815475826,-500.0,0.00034246,2]
[354916794,1740815475835,-500.0,0.00034246,2]
[354916795,1740815475845,-500.0,0.00034246,2]
[354916796,1740815475855,-736.95,0.00034246,2]
[354916797,1740815475864,-3243.23,0.00034246,2]
[354916798,1740815475874,-656.65,0.00034246,2]
[354916799,1740815475883,-1908.98,0.00034246,2]
[354916800,1740815475892,-500.0,0.00034246,2]
[354916801,1740815475902,-1470.56,0.00034246,2]
[354916802,1740815475911,-500.0,0.00034246,2]
[354916803,1740815475922,-628.5,0.00034246,2]
[354916804,1740815475932,-1186.15,0.00034246,2]
[354916805,1740815475942,-2004.58,0.00034246,2]
[354916806,1740815475952,-1312.34,0.00034246,2]
[354916807,1740815475962,-1154.89,0.00034246,2]
[354916808,1740815475971,-222589.56982511,0.00034246,2]
[354916809,1740815477008,-288.82,0.00032866,3]
[354916810,1740815477019,-120.9252145,0.00032876,2]
[354916811,1740815477427,-195.3125,0.00031723,120]
[354916812,1740815477438,-225.91226886,0.00032876,2]
[354916819,1740816204356,4741.38022111,0.0003,30]
[354916820,1740816430426,4234.4727153,0.0003,120]
[354916821,1740816434120,-500.0,0.00028322,5]
[354916822,1740816434141,-542.082445,0.00029328,2]
[354916823,1740816434161,-500.0,0.00029813,5]
[354916824,1740816434274,-5893.99263673,0.00030195,2]
[354916825,1740816451291,-845.15688844,0.00030195,2]
[354916828,1740816554183,300.0,0.0003,7]
[354916829,1740816558103,-10000.0,0.00029958,2]
[354916830,1740816558127,-1621.10410793,0.00030195,2]
[354916831,1740816558152,-246.42609702,0.000309,5]
[354916832,1740816558175,-1018.752681,0.00030918,2]
[354916833,1740816558197,-420.92746411,0.00031,10]
[354916834,1740816558220,-21903.75213476,0.00031149,2]
[354916835,1740816561217,-2996.24786524,0.00031149,2]
[354916836,1740816561240,-524.80921919,0.00031248,2]
[354916837,1740816561262,-500.0,0.00031248,2]
[354916838,1740816561284,-1209.2542877,0.00031292,64]
[354916839,1740816561308,-500.0,0.00031382,5]
[354916840,1740816561333,-500.0,0.00031452,2]
[354916841,1740816561357,-500.0,0.00031452,2]
[354916842,1740816561382,-500.0,0.00031452,2]
[354916843,1740816561405,-500.0,0.00031452,2]
[354916844,1740816561429,-500.0,0.00031452,2]
[354916845,1740816561453,-500.0,0.00031452,2]
[354916846,1740816561476,-500.0,0.00031452,2]
[354916847,1740816561499,-500.0,0.00031452,2]
[354916848,1740816561522,-500.0,0.00031452,2]
[354916849,1740816561546,-500.0,0.00031452,2]
[354916850,1740816561571,-500.0,0.00031452,2]
[354916851,1740816561596,-500.0,0.00031452,2]
[354916852,1740816561621,-500.0,0.00031452,2]
[354916853,1740816561643,-500.0,0.00031452,2]
[354916854,1740816561669,-217.344882,0.00031452,2]
[354916855,1740816561692,-500.0,0.00031452,2]
[354916856,1740816561716,-500.0,0.00031452,2]
[354916857,1740816561740,-500.0,0.00031452,2]
[354916858,1740816561763,-500.0,0.00031452,2]
[354916859,1740816561786,-293.5815439,0.00031503,2]
[354916860,1740816561810,-451.07,0.00031713,3]
[354916861,1740816561832,-20000.0,0.00031723,2]
[354916862,1740816561855,-20000.0,0.00031723,2]
[354916863,1740816561877,-20000.0,0.00031723,2]
[354916864,1740816561898,-5000.0,0.00031723,120]
[354916865,1740816561920,-250.0,0.000318,2]
[354916866,1740816561948,-524.80921916,0.00031986,2]
[354916867,1740816561969,-1004.10533762,0.00032,120]
[354916868,1740816561991,-524.80921916,0.00032723,2]
[354916869,1740816562013,-477.3660915,0.00032776,2]
[354916870,1740816562034,-13454.72387799,0.0003286,2]
[354916871,1740816562057,-300.7,0.00032866,3]
[354916872,1740816562078,-150.35,0.00032866,3]
[354916873,1740816562099,-500.0,0.00032873,5]
[354916874,1740816562119,-500.0,0.00032873,5]
[354916875,1740816562139,-504.55378222,0.00032873,5]
[354916876,1740816562159,-500.0,0.00032873,5]
[354916877,1740816562182,-500.0,0.00032873,5]
[354916878,1740816562203,-500.0,0.00032873,5]
[354916879,1740816562223,-160.0,0.00032873,5]
[354916880,1740816562243,-500.0,0.00032873,5]
[354916881,1740816562264,-500.0,0.00032873,3]
[354916882,1740816562286,-500.0,0.00032873,5]
[354916883,1740816562307,-500.0,0.00032873,5]
[354916884,1740816562328,-500.0,0.00032873,5]
[354916885,1740816562349,-500.0,0.00032873,5]
[354916886,1740816562370,-500.0,0.00032873,5]
[354916887,1740816562393,-500.0,0.00032873,5]
[354916888,1740816562415,-500.0,0.00032873,5]
[354916889,1740816562437,-502.87945039,0.00032873,5]
[354916890,1740816562468,-500.0,0.00032873,5]
[354916891,1740816562499,-500.0,0.00032875,2]
[354916892,1740816562528,-500.0,0.00032875,2]
[354916893,1740816562559,-254.76308781,0.00032875,2]
[354916894,1740816562590,-500.0,0.00032875,2]
[354916895,1740816562617,-500.0,0.00032875,2]
[354916896,1740816562646,-186.75093082,0.00032875,2]
[354916897,1740816562671,-500.0,0.00032876,2]
[354916898,1740816562696,-500.0,0.00032876,2]
[354916899,1740816562722,-500.0,0.00032876,2]
[354916900,1740816562748,-539.70988336,0.00032876,2]
[354916901,1740816562774,-500.0,0.00032876,2]
[354916902,1740816562800,-470.39141204,0.00032876,2]
[354916903,1740816562825,-500.0,0.00032876,2]
[354916904,1740816562850,-505.90034123,0.00032876,2]
[354916905,1740816562875,-500.0,0.00032876,2]
[354916906,1740816562901,-248.27052954,0.00032876,2]
[354916907,1740816562926,-500.0,0.00032876,2]
[354916908,1740816562952,-500.0,0.00032876,2]
[354916909,1740816562977,-500.0,0.00032876,2]
[354916910,1740816563003,-500.0,0.00032876,2]
[354916911,1740816563027,-500.0,0.00032876,2]
[354916912,1740816563054,-500.0,0.00032876,2]
[354916913,1740816563079,-500.0,0.00032876,2]
[354916914,1740816563105,-500.0,0.00032876,2]
[354916915,1740816563130,-500.0,0.00032876,2]
[354916916,1740816563155,-500.0,0.00032876,2]
[354916917,1740816563180,-500.0,0.00032876,2]
[354916918,1740816563205,-500.0,0.00032876,2]
[354916919,1740816563230,-500.0,0.00032876,2]
[354916920,1740816563401,-16.83610511,0.00032876,2]
[354916921,1740816563810,-483.16389489,0.00032876,2]
[354916922,1740816563831,-31.81330631,0.00032876,2]
[354916923,1740816573391,-500.0,0.00032876,2]
[354916924,1740816573414,-500.0,0.00032876,2]
[354916925,1740816573440,-500.0,0.00032876,2]
[354916926,1740816573462,-975.65,0.00032876,2]
[354916927,1740816573485,-500.0,0.00032876,2]
[354916928,1740816573508,-500.0,0.00032876,2]
[354916929,1740816573532,-500.0,0.00032876,2]
[354916930,1740816573555,-500.0,0.00032876,2]
[354916931,1740816573578,-791.82,0.00032876,2]
[354916932,1740816573601,-500.0,0.00032876,2]
[354916933,1740816573626,-1187.05,0.00032876,2]
[354916934,1740816573649,-500.0,0.00032876,2]
[354916935,1740816573675,-576.51,0.00032876,2]
[354916936,1740816573698,-237.51748074,0.00032876,2]
[354916937,1740816573720,-502.19218738,0.00032876,2]
[354916938,1740816573743,-500.0,0.00032876,2]
[354916939,1740816573766,-823.29,0.00032876,2]
[354916940,1740816573789,-500.0,0.00032876,2]
[354916941,1740816573813,-500.0,0.00032876,2]
[354916942,1740816573835,-500.0,0.00032876,2]
[354916943,1740816573860,-500.0,0.00032876,2]
[354916944,1740816573883,-500.0,0.00032876,2]
[354916945,1740816573906,-517.70690516,0.00032876,2]
[354916946,1740816573929,-534.51152598,0.00032876,2]
[354916947,1740816573952,-500.0,0.00032876,2]
[354916948,1740816573975,-1517.21,0.00032876,2]
[354916949,1740816573998,-352.22682422,0.00032876,2]
[354916995,1740816632998,-160.3340534,0.00031751,2]
[354916997,1740816633008,-122.1190893,0.00032856,2]
[354916999,1740816633021,-28.8809107,0.00032856,2]
[354917001,1740816633031,-500.0,0.00032856,2]
[354917003,1740816633041,-150.35,0.00032866,3]
[354917005,1740816633051,-500.0,0.00032873,5]
[354917007,1740816633061,-500.0,0.00032873,5]
[354917009,1740816633070,-500.0,0.00032873,5]
[354917010,1740816633081,-500.0,0.00032873,5]
[354917011,1740816633091,-400.0,0.00032875,2]
[354917012,1740816633101,-530.72565158,0.00032875,2]
[354917013,1740816633111,-500.0,0.00032875,2]
[354917014,1740816633121,-378.33416146,0.00032875,2]
[354917015,1740816633131,-500.0,0.00032876,2]
[354917016,1740816633514,-500.0,0.00032876,2]
[354917017,1740816633525,-500.0,0.00032876,2]
[354917018,1740816633535,-500.0,0.00032876,2]
[354917019,1740816633545,-374.68078874,0.00032876,2]
[354917020,1740816633555,-500.0,0.00032876,2]
[354917021,1740816633565,-500.0,0.00032876,2]
[354917022,1740816633575,-500.0,0.00032876,2]
[354917023,1740816633586,-500.0,0.00032876,2]
[354917024,1740816633597,-500.0,0.00032876,2]
[354917025,1740816633609,-504.48359762,0.00032876,2]
[354917026,1740816633619,-806.67,0.00032876,2]
[354917027,1740816633629,-500.0,0.00032876,2]
[354917028,1740816633640,-500.0,0.00032876,2]
[354917029,1740816633650,-504.15923433,0.00032876,2]
[354917030,1740816633659,-500.0,0.00032876,2]
[354917031,1740816633669,-500.0,0.00032876,2]
[354917032,1740816633681,-500.0,0.00032876,2]
[354917033,1740816633691,-500.0,0.00032876,2]
[354917034,1740816633703,-500.0,0.00032876,2]
[354917035,1740816633713,-500.0,0.00032876,2]
[354917036,1740816633724,-500.0,0.00032876,2]
[354917037,1740816633735,-721.49,0.00032876,2]
[354917038,1740816633745,-500.0,0.00032876,2]
[354917039,1740816633755,-500.0,0.00032876,2]
[354917040,1740816633766,-500.0,0.00032876,2]
[354917041,1740816633776,-500.0,0.00032876,2]
[354917042,1740816633787,-682.07,0.00032876,2]
[354917043,1740816633798,-500.0,0.00032876,2]
[354917044,1740816633809,-86.973778,0.00032876,2]
[354917058,1740816638662,-500.0,0.00032875,2]
[354917059,1740816638672,-524.14943133,0.00032875,2]
[354917060,1740816638683,-413.026222,0.00032876,2]
[354917061,1740816638694,-500.0,0.00032876,2]
[354917062,1740816638705,-503.13327549,0.00032876,2]
[354917063,1740816638715,-500.0,0.00032876,2]
[354917064,1740816638726,-500.0,0.00032876,2]
[354917065,1740816638736,-500.0,0.00032876,2]
[354917066,1740816638748,-500.0,0.00032876,2]
[354917067,1740816638758,-500.0,0.00032876,2]
[354917068,1740816638770,-509.43753605,0.00032876,2]
[354917069,1740816638780,-500.0,0.00032876,2]
[354917070,1740816638790,-646.12,0.00032876,2]
[354917071,1740816638800,-500.0,0.00032876,2]
[354917073,1740816638810,-502.85480777,0.00032876,2]
[354917075,1740816638819,-500.0,0.00032876,2]
[354917076,1740816638829,-500.0,0.00032876,2]
[354917077,1740816638839,-503.4512173,0.00032876,2]
[354917078,1740816638848,-500.0,0.00032876,2]
[354917079,1740816638858,-1871.95,0.00032876,2]
[354917080,1740816638867,-500.0,0.00032876,2]
[354917081,1740816638879,-645.37290114,0.00032876,2]
[354917082,1740816638889,-500.0,0.00032876,2]
[354917083,1740816638899,-500.0,0.00032876,2]
[354917084,1740816638908,-500.0,0.00032876,2]
[354917085,1740816638919,-500.0,0.00032876,2]
[354917086,1740816638928,-500.0,0.00032876,2]
[354917087,1740816638940,-500.0,0.00032876,2]
[354917088,1740816638950,-500.0,0.00032876,2]
[354917089,1740816638960,-500.0,0.00032876,2]
[354917090,1740816638970,-500.0,0.00032876,2]
[354917091,1740816638980,-500.0,0.00032876,2]
[354917092,1740816638990,-502.22558594,0.00032876,2]
[354917093,1740816638999,-500.0,0.00032876,2]
[354917094,1740816639010,-500.0,0.00032876,2]
[354917095,1740816639020,-500.0,0.00032876,2]
[354917096,1740816639031,-500.0,0.00032876,2]
[354917097,1740816639040,-500.0,0.00032876,2]
[354917098,1740816639050,-910.55,0.00032876,2]
[354917099,1740816639059,-500.0,0.00032876,2]
[354917100,1740816639069,-500.0,0.00032876,2]
[354917101,1740816639078,-503.01077724,0.00032876,2]
[354917102,1740816639088,-500.0,0.00032876,2]
[354917103,1740816639098,-500.0,0.00032876,2]
[354917104,1740816639108,-500.0,0.00032876,2]
[354917105,1740816639118,-500.0,0.00032876,2]
[354917106,1740816639127,-417.61003245,0.00032876,2]
[354917107,1740816639138,-500.0,0.00032876,2]
[354917108,1740816639148,-500.0,0.00032876,2]
[354917109,1740816639157,-500.0,0.00032876,2]
[354917110,1740816639168,-500.0,0.00032876,2]
[354917111,1740816639177,-500.0,0.00032876,2]
[354917112,1740816639188,-576.36,0.00032876,2]
[354917113,1740816639198,-500.0,0.00032876,2]
[354917114,1740816639207,-500.0,0.00032876,2]
[354917115,1740816639216,-535.9566018,0.00032876,2]
[354917116,1740816639226,-500.0,0.00032876,2]
[354917117,1740816639237,-500.0,0.00032876,2]
[354917118,1740816639247,-500.0,0.00032876,2]
[354917119,1740816639256,-500.0,0.00032876,2]
[354917120,1740816639266,-500.0,0.00032876,2]
[354917121,1740816639276,-500.0,0.00032876,2]
[354917122,1740816639286,-500.0,0.00032876,2]
[354917123,1740816639408,-779.07,0.00032876,2]
[354917124,1740816639418,-500.0,0.00032876,2]
[354917125,1740816639428,-500.0,0.00032876,2]
[354917126,1740816639438,-521.71,0.00032876,2]
[354917127,1740816639447,-500.0,0.00032876,2]
[354917128,1740816639456,-500.0,0.00032876,2]
[354917129,1740816639466,-500.0,0.00032876,2]
[354917130,1740816639476,-500.0,0.00032876,2]
[354917131,1740816639487,-976.99,0.00032876,2]
[354917132,1740816639497,-500.0,0.00032876,2]
[354917133,1740816639506,-500.0,0.00032876,2]
[354917134,1740816639516,-500.0,0.00032876,2]
[354917135,1740816639525,-500.0,0.00032876,2]
[354917136,1740816639534,-500.0,0.00032876,2]
[354917137,1740816639543,-500.0,0.00032876,2]
[354917138,1740816639552,-1415.36,0.00032876,2]
[354917139,1740816639562,-500.0,0.00032876,2]
[354917140,1740816639572,-500.0,0.00032876,2]
[354917141,1740816639581,-500.0,0.00032876,2]
[354917142,1740816639590,-500.0,0.00032876,2]
[354917143,1740816639605,-500.0,0.00032876,2]
[354917144,1740816639616,-500.0,0.00032876,2]
[354917145,1740816639626,-500.0,0.00032876,2]
[354917146,1740816639638,-500.0,0.00032876,2]
[354917147,1740816639648,-500.0,0.00032876,2]
[354917148,1740816639657,-500.0,0.00032876,2]
[354917149,1740816639667,-500.0,0.00032876,2]
[354917150,1740816639679,-500.0,0.00032876,2]
[354917151,1740816639689,-500.0,0.00032876,2]
[354917152,1740816639699,-500.0,0.00032876,2]
[354917153,1740816639709,-500.0,0.00032876,2]
[354917154,1740816639720,-500.0,0.00032876,2]
[354917155,1740816639729,-500.0,0.00032876,2]
[354917156,1740816639738,-500.0,0.00032876,2]
[354917157,1740816639748,-500.0,0.00032876,2]
[354917158,1740816639759,-500.0,0.00032876,2]
[354917159,1740816639768,-343.43110475,0.00032876,2]
[354917160,1740816639778,-1343.07,0.00032876,2]
[354917161,1740816639787,-500.0,0.00032876,2]
[354917162,1740816639796,-500.0,0.00032876,2]
[354917163,1740816639805,-500.0,0.00032876,2]
[354917164,1740816639815,-500.0,0.00032876,2]
[354917165,1740816639825,-500.0,0.00032876,2]
[354917166,1740816639834,-500.0,0.00032876,2]
[354917167,1740816639843,-500.0,0.00032876,2]
[354917168,1740816639851,-500.0,0.00032876,2]
[354917169,1740816639860,-445.18743021,0.00032876,2]
[354917170,1740816639870,-982.25,0.00032876,2]
[354917171,1740816639879,-500.0,0.00032876,2]
[354917172,1740816639891,-500.0,0.00032876,2]
[354917173,1740816639902,-500.0,0.00032876,2]
[354917174,1740816639912,-500.0,0.00032876,2]
[354917175,1740816639922,-500.0,0.00032876,2]
[354917176,1740816639932,-500.0,0.00032876,2]
[354917177,1740816639942,-500.0,0.00032876,2]
[354917178,1740816639951,-500.0,0.00032876,2]
[354917179,1740816639964,-500.0,0.00032876,2]
[354917180,1740816639974,-500.0,0.00032876,2]
[354917181,1740816639985,-500.0,0.00032876,2]
[354917182,1740816639994,-500.0,0.00032876,2]
[354917183,1740816640004,-500.0,0.00032876,2]
[354917184,1740816640013,-500.0,0.00032876,2]